Cogmind - Beta 10.2 @@@ ROGUE MODE // 2021.06.30 @ 16:47:59 Player: Sanctumkeeper Result: Destroyed by S-43 Plague with Heavy Machine Gun Performance ------------- Evolutions (8) 4000 Regions Visited (25) 5000 Robots Destroyed (331) 1655 Value Destroyed (14989) 14989 Prototype IDs (37) 740 Alien Tech Used (0) 0 Bonus (3951) 3951 TOTAL SCORE: 30335 Bonus ------- High Alert Combat Kills 1408 Follower Combat Kills 760 Entered Garrisons 800 Used RIF Installer 2000 Aligned with FarCom 300 Friendly Fire -1317 Cogmind --------- Core Integrity 0/1450 Matter 188/300 Energy 98/100 System Corruption 1% Temperature Cool (0) Movement Core (50) Location -2/Research Parts ------- > --- POWER (2) -------- (None) > --- PROPULSION (4) --- (None) > --- UTILITY (13) ----- (None) > --- WEAPON (4) ------- (None) > --- INVENTORY (4) ---- Faulty Experimental Gyrokinetic Inverter YI-UF0's Bottomless Matter Pit (1240) Peak State ------------ > --- POWER ------------ Micro Fission Core Mini Fusion Reactor > --- PROPULSION ------- Medium Treads Improved Medium Treads Armored Medium Treads Armored Medium Treads > --- UTILITY ---------- Advanced Heat Sink Large Storage Unit Large Storage Unit High-capacity Storage Unit High-capacity Storage Unit Advanced Signal Interpreter Targeting Computer Advanced Target Analyzer Advanced Transmission Jammer Improved Medium Armor Plating Relay Coupler [NC] Relay Coupler [Sentry] > --- WEAPON ----------- Matter Neutralizer Coil Gun KE Penetrator > --- INVENTORY -------- Enhanced Fission Core Micro Fission Core Micro Fission Core Biometal Medium Treads Advanced Heavy Treads Advanced Heavy Treads Advanced Heat Sink Advanced Heat Sink Advanced Heat Sink Energy Well YI-UF0's Bottomless Matter Pit Advanced Sensor Array Improved Terrain Scan Processor Advanced Terrain Scan Processor Improved Targeting Computer Improved Target Analyzer Improved Focal Shield Advanced Shield Generator Improved Force Field Relay Coupler [NC] Compact HERF Cannon Nova Cannon Nova Cannon XL Autogun Array Smartbomb Launcher Improved Remote Datajack [Rating: 109] Favorites ----------- Power Micro Fission Core Engine Improved Deuterium Engine Power Core Micro Fission Core Reactor Mini Fusion Reactor Propulsion Light Treads Treads Light Treads Wheel Armored Wheel Hover Unit Experimental Gyrokinetic Inverter Flight Unit Field Propulsion Array Utility Large Storage Unit Device Advanced Heat Sink Storage Large Storage Unit Processor Improved Signal Interpreter Hackware Relay Coupler [NC] Protection Hardened Medium Armor Plating Weapon Flak Gun Energy Gun EM Shotgun Energy Cannon Advanced Plasma Cannon Ballistic Gun Flak Gun Launcher Smartbomb Launcher Special Weapon Remote Datajack Slashing Weapon Chainsword Build | -11 -10 -10 -9 -9 -9 -8 -8 -8 -8 -8 -7 -7 -7 -7 -6 -6 -6 -5 -5 -5 -5 -4 -3 -3 -2 ------- Run | Scr Mat Min Mat Min Exi Min Mat Gar Mat Gar Fac Gar Fac Gar Fac Was Fac Fac Was Fac Ext Fac Res Qua Res Slots Evolved 16 | . . . 2 . . . 2 . . . 2 . . . 2 . . 2 . . . 2 2 . 2 Power 1 | . . . . . . . . . . . . . . . . . . . . . . . 1 . . Propulsion 2 | . . . 1 . . . . . . . . . . . . . . . . . . 1 . . . Utility 11 | . . . 1 . . . 2 . . . 2 . . . 1 . . 2 . . . 1 1 . 1 Weapon 2 | . . . . . . . . . . . . . . . 1 . . . . . . . . . 1 Parts Attached 399 | 6 11 2 24 10 . . 15 5 11 15 17 5 29 2 11 5 3 15 1 47 37 49 52 17 10 Power 31 | 1 2 . 3 2 . . 1 . 1 2 1 1 . 1 . . . 1 . 4 1 4 3 3 . Engine 12 | 1 2 . 3 2 . . 1 . 1 . . 1 . . . . . . . . 1 . . . . Core 13 | . . . . . . . . . . 2 1 . . 1 . . . 1 . 3 . . 3 2 . Reactor 6 | . . . . . . . . . . . . . . . . . . . . 1 . 4 . 1 . Propulsion 87 | 2 3 . 6 3 . . 3 3 3 5 1 3 6 . 3 1 . 2 1 9 10 7 8 4 4 Treads 81 | 2 3 . 4 3 . . 3 3 3 5 1 3 6 . 3 1 . 2 1 9 10 7 8 3 1 Leg . | . . . . . . . . . . . . . . . . . . . . . . . . . . Wheel 3 | . . . 2 . . . . . . . . . . . . . . . . . . . . . 1 Hover 1 | . . . . . . . . . . . . . . . . . . . . . . . . . 1 Flight 2 | . . . . . . . . . . . . . . . . . . . . . . . . 1 1 Utility 158 | 1 4 1 3 . . . 7 1 6 2 12 1 12 . 5 2 1 8 . 17 14 20 31 5 5 Device 72 | . . . . . . . 1 . 2 1 7 . 5 . 3 2 . 1 . 8 4 11 22 2 3 Storage 27 | 1 4 1 3 . . . 1 . 2 . . . . . 1 . . 2 . 2 1 4 3 . 2 Processor 11 | . . . . . . . . . . . 1 . 1 . . . . 1 . . 3 2 1 2 . Hackware 7 | . . . . . . . . . . . 1 . 1 . . . 1 1 . . 1 1 1 . . Protection 41 | . . . . . . . 5 1 2 1 3 1 5 . 1 . . 3 . 7 5 2 4 1 . Artifact . | . . . . . . . . . . . . . . . . . . . . . . . . . . Weapon 123 | 2 2 1 12 5 . . 4 1 1 6 3 . 11 1 3 2 2 4 . 17 12 18 10 5 1 Energy Gun 14 | 2 . . 2 1 . . 2 . . . . . . . . . . . . 1 2 2 . 2 . Energy Cannon 35 | . . . 1 . . . . . . . . . . . . . . . . 15 6 7 4 1 1 Ballistic Gun 58 | . 2 1 9 3 . . 2 1 1 5 3 . 8 1 2 1 1 4 . 1 2 7 4 . . Ballistic Cannon . | . . . . . . . . . . . . . . . . . . . . . . . . . . Launcher 4 | . . . . . . . . . . 1 . . . . . . . . . . 1 1 . 1 . Special Weapon 11 | . . . . 1 . . . . . . . . 2 . 1 1 1 . . . 1 1 2 1 . Impact Weapon . | . . . . . . . . . . . . . . . . . . . . . . . . . . Slashing Weapon 1 | . . . . . . . . . . . . . 1 . . . . . . . . . . . . Piercing Weapon . | . . . . . . . . . . . . . . . . . . . . . . . . . . Special Melee Weapon . | . . . . . . . . . . . . . . . . . . . . . . . . . . Unidentified Prototypes 13 | . . . 2 . . . 1 . . . . . 2 . . . . . . 1 . 2 2 1 2 Parts Lost 147 | . 4 1 5 3 . . 9 4 1 6 . 4 2 1 4 . 1 7 . 31 17 13 16 16 2 Power 14 | . 2 . 1 . . . 1 . 1 1 . 1 . 1 . . . . . 1 . 1 1 2 1 Propulsion 47 | . 1 . 3 3 . . 3 3 . 1 . 3 1 . 2 . . 1 . 6 3 4 7 5 1 Utility 33 | . . . . . . . 2 . . 1 . . 1 . 2 . . 2 . 10 7 3 1 4 . Weapon 53 | . 1 1 1 . . . 3 1 . 3 . . . . . . 1 4 . 14 7 5 7 5 . Highest Loss Streak 12 | . 1 1 2 2 . . 2 2 1 4 . 2 2 1 2 . 1 4 . 12 6 4 8 10 2 Average Slot Usage (%) 94 | . 94 100 97 99 100 100 96 99 99 100 99 99 99 99 95 85 86 84 88 84 94 97 97 57 25 Engine 5 | . 13 14 11 11 11 11 9 9 8 4 . 4 7 1 . . . . . . 1 . . . . Core 1 | . . . . . . . . . . 4 7 2 . 5 6 6 6 5 5 4 3 . 2 6 . Treads 21 | . 27 28 21 29 33 33 24 27 27 27 23 22 23 23 20 16 13 10 11 11 16 19 18 6 3 Device 5 | . . . . . . . . . . . 8 . 5 . 8 2 6 6 . 8 15 14 13 7 3 Storage 27 | . 25 28 33 33 33 33 36 36 36 36 30 30 30 30 26 26 26 23 23 21 22 23 19 14 3 Processor 4 | . . . . . . . . . . . 6 7 7 7 6 6 6 9 11 7 4 8 14 11 3 Hackware 2 | . . . . . . . . . . . 3 7 6 7 6 6 6 5 5 4 2 6 8 4 . Protection 3 | . . . . . . . 8 9 8 8 2 7 1 7 . . . 1 11 7 7 2 . . 3 Energy Gun 1 | . 10 . . . . . 6 2 . . . . . . . . . . . . . . . 2 . Energy Cannon 2 | . . . . . . . . . . . . . . . . . . . . 7 10 4 4 . . Ballistic Gun 13 | . 16 28 21 20 22 22 11 15 18 17 15 15 14 14 19 13 13 13 17 7 2 9 7 . . Naked Turns 79 | . . . . . . . . . . . . . . . . . . . . . . . . 19 60 Heaviest Build 159 | 11 40 56 89 96 96 96 120 120 120 119 117 120 121 121 124 113 113 137 125 159 129 108 138 125 46 Greatest Support 140 | 40 40 40 40 60 60 60 60 60 60 60 60 60 72 72 72 98 98 108 108 108 76 109 117 140 60 Greatest Overweight (x) 40 | 3 . 1 29 7 1 1 5 1 1 1 1 1 2 1 1 1 1 1 1 5 2 1 1 40 1 Average Overweight (x) 1 | . . . 5 2 1 1 1 1 1 1 1 1 1 1 1 1 1 . 1 1 1 . . . . Largest Inventory Capacity 38 | 6 16 18 26 26 26 26 32 32 32 32 32 32 32 32 38 32 32 38 30 30 22 26 32 32 10 Average Capacity 27 | 5 13 17 25 26 26 26 32 32 32 32 32 32 32 32 32 32 32 31 30 28 22 22 29 25 8 Most Carried 32 | 3 14 18 26 26 26 26 32 32 32 32 32 32 32 32 32 32 32 32 30 30 22 26 32 30 5 Average Carried 25 | 1 10 17 23 25 25 26 24 31 31 31 31 31 31 31 30 31 31 31 29 25 21 21 29 19 3 Final Capacity 32 | 6 16 18 26 26 26 26 32 32 32 32 32 32 32 32 32 32 32 30 30 22 22 26 32 4 4 Final Carried 32 | 3 14 18 25 26 26 26 32 32 32 32 32 31 31 32 31 32 32 30 30 22 21 26 30 3 2 Class Distribution -------------------- 36% | Hauler-Mutant 22% | Bothacker-Mutant 13% | Scavenger-Gunner 10% | Mutant 6% | Scavenger-Mutant 4% | Bothacker-Tank 4% | Scavenger-Tank Dominant Class ---------------- Mutant | -10/Materials Mutant | -10/Mines Hauler-Mutant | -9/Materials Hauler-Mutant | -9/Mines Hauler-Mutant | -9/Exiles Hauler-Mutant | -8/Mines Hauler-Mutant | -8/Materials Hauler-Mutant | -8/Garrison Hauler-Mutant | -8/Materials Hauler-Mutant | -8/Garrison Bothacker-Mutant | -7/Factory Bothacker-Mutant | -7/Garrison Bothacker-Mutant | -7/Factory Bothacker-Mutant | -7/Garrison Bothacker-Skirmisher | -6/Factory Bothacker-Mutant | -6/Waste Bothacker-Mutant | -6/Factory Bothacker-Mutant | -5/Factory Bothacker-Tank | -5/Waste Bothacker-Mutant | -5/Factory Scavenger-Gunner | -5/Extension Scavenger-Gunner | -4/Factory Scavenger-Gunner | -3/Research Hauler-Mutant | -3/Quarantine Mutant | -2/Research Resources | -11 -10 -10 -9 -9 -9 -8 -8 -8 -8 -8 -7 -7 -7 -7 -6 -6 -6 -5 -5 -5 -5 -4 -3 -3 -2 ----------- Run | Scr Mat Min Mat Min Exi Min Mat Gar Mat Gar Fac Gar Fac Gar Fac Was Fac Fac Was Fac Ext Fac Res Qua Res Matter Collected 12600 | 226 275 49 607 231 . . 1334 490 692 399 386 390 723 152 407 770 415 385 513 887 688 1447 930 204 . Remotely . | . . . . . . . . . . . . . . . . . . . . . . . . . . Salvage Created 16630 | . 672 80 1108 700 . . 1274 548 491 428 420 545 1017 269 457 714 200 549 . 2540 1675 2026 861 56 . Parts 768 | . 26 3 81 42 . . 44 31 29 24 19 32 62 14 30 12 10 32 . 107 53 73 44 . . Haulers Intercepted 17 | . 2 . 3 . . . 2 . 1 . 2 . 2 . 1 . . . . . 1 2 1 . . Recyclers Shooed 19 | . 4 . 4 1 . . 2 . . . 1 . 1 . . . . . . 2 1 3 . . . Parts Field Recycled . | . . . . . . . . . . . . . . . . . . . . . . . . . . Retrieved Matter . | . . . . . . . . . . . . . . . . . . . . . . . . . . Parts Self-Destructed . | . . . . . . . . . . . . . . . . . . . . . . . . . . Prevented . | . . . . . . . . . . . . . . . . . . . . . . . . . . Kills | -11 -10 -10 -9 -9 -9 -8 -8 -8 -8 -8 -7 -7 -7 -7 -6 -6 -6 -5 -5 -5 -5 -4 -3 -3 -2 ------- Run | Scr Mat Min Mat Min Exi Min Mat Gar Mat Gar Fac Gar Fac Gar Fac Was Fac Fac Was Fac Ext Fac Res Qua Res Combat Hostiles Destroyed 271 | . 12 2 29 10 . . 19 10 7 10 5 12 17 7 11 3 3 9 . 43 21 28 12 1 . Guns 195 | . 9 2 29 10 . . 19 10 7 10 5 12 17 7 11 3 3 9 . 11 2 13 6 . . Cannons 59 | . . . . . . . . . . . . . . . . . . . . 29 17 7 6 . . AOE 10 | . 3 . . . . . . . . . . . . . . . . . . 2 . 5 . . . Classes Destroyed 18 | . 6 . 2 2 . . . 1 1 . 1 1 . . . 1 . . . 1 2 . . . . Worker 11 | . 2 . . 1 . . . . 1 . . . 1 . 1 . . 1 . 2 . 2 . . . Builder 9 | . 1 . . . . . . . 1 . . . . . . . . . . 4 1 1 1 . . Tunneler 1 | . . . . 1 . . . . . . . . . . . . . . . . . . . . . Hauler 17 | . 2 . 3 . . . 2 . 1 . 2 . 2 . 1 . . . . . 1 2 1 . . Recycler 9 | . 1 . . 2 . . 2 . . . 1 . 1 . . . . . . . 1 1 . . . Mechanic 1 | . . . . . . . . . . . . . . . . . . . . . 1 . . . . Operator 2 | . . . . . . . . . 1 . . . . . . . . . . . 1 . . . . Watcher 9 | . . . 1 . . . . . 1 . . . 1 . 1 . 1 1 . 1 . 1 1 . . Swarmer 54 | . 3 . 14 3 . . . . . 2 . 3 4 4 10 . . 2 . 5 2 2 . . . Saboteur 1 | . . . . . . . . . . . . . . . . . . . . 1 . . . . . Grunt 111 | . 9 2 9 3 . . 17 4 4 4 2 6 7 2 . . . 3 . 21 7 10 1 . . Brawler 10 | . . . . . . . . 1 . . . 1 2 . . . . . . 3 1 2 . . . Duelist 4 | . . . . 2 . . . . . 1 . 1 . . . . . . . . . . . . . Sentry 46 | . . . 6 2 . . 2 5 3 3 1 . 1 1 1 . 2 2 . 6 6 1 4 . . Hunter 12 | . . . . . . . . . . . . 1 . . . . . . . 2 4 4 . 1 . Programmer 27 | . . . . . . . . . . . 2 . 3 . . . 1 2 . 5 . 8 6 . . Behemoth 2 | . . . . . . . . . . . . . . . . . . . . . 1 . 1 . . Compactor 3 | . . . . . . . . . . . . . . . . 3 . . . . . . . . . Thug 1 | . . . . . . . . . . . . . . . . . . . . . . 1 . . . Best Kill Streak 7 | . 4 2 5 3 . . 4 2 4 4 2 6 6 4 4 2 1 4 . 7 6 7 4 1 . Combat Bots Only 7 | . 3 2 5 3 . . 4 2 2 4 2 6 5 4 4 2 1 4 . 7 6 6 4 1 . Max Kills in Single Turn 2 | . 1 1 1 2 . . 1 1 2 2 1 1 2 2 2 1 1 1 . 2 2 2 1 1 . Gunslinging 1 | . . . . 1 . . . . . 1 . . . 1 1 . . . . . . . . . . Exploded 1 | . 1 . . . . . . . . . . . . . . . . . . 1 . 1 . . . Melee . | . . . . . . . . . . . . . . . . . . . . . . . . . . Uniques/NPCs Destroyed 1 | . . . . 1 . . . . . . . . . . . . . . . . . . . . . YI-UF0 (-9/Mines) Combat | -11 -10 -10 -9 -9 -9 -8 -8 -8 -8 -8 -7 -7 -7 -7 -6 -6 -6 -5 -5 -5 -5 -4 -3 -3 -2 -------- Run | Scr Mat Min Mat Min Exi Min Mat Gar Mat Gar Fac Gar Fac Gar Fac Was Fac Fac Was Fac Ext Fac Res Qua Res Damage Taken 34909 | . 930 86 1284 319 . . 1727 617 432 1395 306 627 1119 662 696 . 293 1463 . 7936 3013 2554 3773 3069 2608 Core 5137 | . 112 28 158 63 . . 157 72 43 187 48 45 168 57 105 . 29 165 . 554 204 378 436 667 1461 Absorbed by Shields 570 | . . . . . . . . . . . . . . . . . . . . . 14 505 51 . . Reduced by Siege Mode 51 | . . . . . . . . . . . . . . . . . . . . 51 . . . . . Core Remaining (%) 47 | 100 . 44 . . . 44 . . . 16 . . . 54 . . 84 . . . 7 67 . 15 . Volleys Fired 1093 | . 65 6 113 41 . . 89 38 41 44 19 35 58 16 31 41 28 40 . 114 86 96 65 22 5 Largest 3 | . 2 2 2 2 . . 2 2 2 2 2 2 2 2 3 2 2 3 . 3 3 3 3 2 1 Hottest 300 | . 90 40 40 46 . . 70 70 48 48 56 56 56 56 84 56 56 84 . 300 271 238 243 130 120 Shots Fired 2300 | . 130 12 226 67 . . 178 73 82 86 38 70 113 33 83 68 47 91 . 269 204 221 174 30 5 Gun 1782 | . 130 12 226 63 . . 178 73 82 84 38 70 110 33 78 58 42 87 . 90 49 148 105 26 . Cannon 462 | . . . . . . . . . . . . . . . . . . . . 179 149 61 66 2 5 Launcher 19 | . . . . . . . . . . 2 . . . . . . . . . . 5 10 . 2 . Special 37 | . . . . 4 . . . . . . . . 3 . 5 10 5 4 . . 1 2 3 . . Kinetic 1587 | . 68 12 226 52 . . 133 62 82 84 38 70 110 33 78 58 42 87 . 83 39 125 105 . . Thermal 507 | . 21 . . 4 . . . . . . . . . . . . . . . 179 159 73 66 . 5 Explosive 19 | . . . . . . . . . . 2 . . . . . . . . . . 5 10 . 2 . Electromagnetic 154 | . 41 . . 11 . . 45 11 . . . . . . . . . . . 7 . 11 . 28 . Robot Hit Streak 28 | . 8 8 16 25 . . 20 22 19 24 14 9 18 7 18 13 12 21 . 16 26 28 23 12 4 Robot Miss Streak 8 | . 3 1 4 3 . . 3 2 2 4 6 4 5 6 8 5 7 7 . 8 2 6 2 3 2 Penetration Max 1 | . . . . . . . . . . . . . . . . . . . . . . 1 . . . Secondary Targets 26 | . 2 . 2 2 . . 4 2 . 1 . 3 . 1 2 2 . 4 . 1 . . . . . Max Gunslinging Chain 1 | . 1 . 1 1 . . 1 1 . 1 . 1 . 1 1 1 . 1 . 1 . . . . . Shots Hit Robots 1700 | . 86 9 166 53 . . 132 53 60 50 31 55 100 28 75 66 40 86 . 186 134 146 120 21 3 Core Hits 1014 | . 31 4 60 24 . 1 69 26 23 21 24 61 87 30 50 43 24 76 . 164 58 97 33 7 1 Critical Hits 24 | . . . 1 1 . . 2 . . . 1 . . . . . . . . 1 4 5 9 . . Critical Kills 7 | . . . 1 . . . . . . . 1 . . . . . . . . . 1 2 2 . . Critical Parts Destroyed 9 | . . . . 1 . . 2 . . . . . . . . . . . . . 3 3 . . . Melee Attacks 3 | . . . . . . . . . . . . . 3 . . . . . . . . . . . . Impact . | . . . . . . . . . . . . . . . . . . . . . . . . . . Slashing 3 | . . . . . . . . . . . . . 3 . . . . . . . . . . . . Piercing . | . . . . . . . . . . . . . . . . . . . . . . . . . . Sneak Attacks . | . . . . . . . . . . . . . . . . . . . . . . . . . . Combat Hostiles . | . . . . . . . . . . . . . . . . . . . . . . . . . . Follow-up Attacks . | . . . . . . . . . . . . . . . . . . . . . . . . . . Damage Inflicted 37298 | . 1242 92 1632 782 . 76 2261 866 955 865 553 903 1877 442 718 2011 510 1541 . 6010 4221 5689 3572 326 154 Guns 23354 | . 1049 92 1632 738 . . 2119 866 943 864 553 874 1867 442 708 2011 510 1393 . 1599 695 2449 1731 219 . Cannons 11261 | . . . . . . . . . . . . . . . . . . . . 4185 3518 1559 1841 37 121 Explosions 2387 | . 193 . . . . . 88 . . . . . . . . . . 148 . 207 . 1681 . 70 . Melee . | . . . . . . . . . . . . . . . . . . . . . . . . . . Ramming 252 | . . . . . . 76 54 . 12 1 . 29 10 . 10 . . . . 19 8 . . . 33 Kinetic 21034 | . 541 92 1632 627 . . 1475 699 943 864 553 874 1867 442 708 2011 510 1393 . 1555 478 2039 1731 . . Thermal 12315 | . 308 . . 44 . . 88 . . . . . . . . . . . . 4392 3735 1786 1841 . 121 Explosive 1223 | . . . . . . . . . . . . . . . . . . 148 . . . 1005 . 70 . Electromagnetic 2474 | . 393 . . 111 . . 644 167 . . . . . . . . . . . 44 . 859 . 256 . Impact . | . . . . . . . . . . . . . . . . . . . . . . . . . . Slashing . | . . . . . . . . . . . . . . . . . . . . . . . . . . Piercing . | . . . . . . . . . . . . . . . . . . . . . . . . . . Highest Corruption 33 | . . . . . . . . . . . 1 3 10 10 . 33 33 3 3 11 11 13 16 16 1 Average Corruption 9 | . . . . . . . . . . . 1 1 4 10 . 19 31 2 3 9 11 9 12 16 1 Corruption Purged 4 | . . . . . . . . . . . . . . . . 1 3 . . . . . . . . Effects 535 | . . . . . . . . . . . 1 4 40 17 . 32 61 4 5 106 123 67 55 20 . Message Errors 82 | . . . . . . . . . . . 1 2 11 3 . 5 7 2 1 15 18 6 8 3 . Matter Fused 97 | . . . . . . . . . . . . . 9 5 . 2 14 1 1 18 23 13 10 1 . Heat Flow Errors 37 | . . . . . . . . . . . . 1 2 . . 2 3 . . 8 12 5 3 1 . Energy Discharges 36 | . . . . . . . . . . . . . 3 1 . 3 1 . 1 7 13 2 5 . . Parts Rejected 5 | . . . . . . . . . . . . . . 1 . 2 . . . 1 1 . . . . Data Loss (minor) 43 | . . . . . . . . . . . . 1 6 1 . 2 1 . 2 10 11 6 2 1 . Data Loss (major) 19 | . . . . . . . . . . . . . 3 . . 1 . . . 5 5 2 1 2 . Misfires 16 | . . . . . . . . . . . . . . 2 . 1 1 . . 8 3 . 1 . . Alerts 5 | . . . . . . . . . . . . . 1 1 . . . . . . 1 1 1 . . Misdirections 38 | . . . . . . . . . . . . . . 1 . 2 9 . . 3 10 8 3 2 . Targeting Errors 131 | . . . . . . . . . . . . . 5 2 . 7 20 1 . 26 23 22 16 9 . Weapon Failures 26 | . . . . . . . . . . . . . . . . 5 5 . . 5 3 2 5 1 . Overload Shots . | . . . . . . . . . . . . . . . . . . . . . . . . . . Overflow Damage 363 | . 29 . . . . . 2 . . 1 . . . . . . . 60 . 99 44 82 35 . 11 Projectiles 179 | . . . . . . . . . . . . . . . . . . . . 46 44 43 35 . 11 Explosions 182 | . 29 . . . . . . . . 1 . . . . . . . 60 . 53 . 39 . . . Melee 2 | . . . . . . . 2 . . . . . . . . . . . . . . . . . . Knockbacks 1 | . . . . . . . . . . . . . . . . . . . . . 1 . . . . Impact 1 | . . . . . . . . . . . . . . . . . . . . . 1 . . . . Kinetic . | . . . . . . . . . . . . . . . . . . . . . . . . . . Secondary . | . . . . . . . . . . . . . . . . . . . . . . . . . . Self-Inflicted Damage 318 | . 70 . . . . . . . . 87 . 29 . . . . . 19 . 70 28 . . . 15 Shots 8 | . 3 . . . . . . . . 2 . . . . . . . 1 . 1 1 . . . . Rammed 23 | . . . 1 . . 7 2 . 1 1 . . 1 . . . . . . 3 1 . . . 6 Targets Rammed 25 | . . . 1 . . 7 3 . 1 1 . . 1 . 1 . . . . 3 1 . . . 6 Kicked . | . . . . . . . . . . . . . . . . . . . . . . . . . . Crushed 2 | . . . . . . . 1 . . . . . . . 1 . . . . . . . . . . Highest Temperature 570 | . 264 18 12 2 . . 234 197 77 75 3 105 149 39 105 218 156 66 . 570 327 277 335 153 . Average Temperature 84 | . 84 10 4 1 . . 69 53 22 21 3 9 23 16 28 46 54 16 . 169 114 89 69 85 . Received Heat Transfer 6905 | . 384 51 444 72 . . 855 306 198 378 66 126 288 117 42 . 42 315 . 1884 555 104 462 . 216 Effects 18 | . . . . . . . . . . . . . . . . . . . . 16 . . 2 . . Shutdowns 4 | . . . . . . . . . . . . . . . . . . . . 3 . . 1 . . Energy Bleed 2 | . . . . . . . . . . . . . . . . . . . . 1 . . 1 . . Interference 3 | . . . . . . . . . . . . . . . . . . . . 3 . . . . . Matter Decay 1 | . . . . . . . . . . . . . . . . . . . . 1 . . . . . Short Circuit 1 | . . . . . . . . . . . . . . . . . . . . 1 . . . . . Damage (minor) 3 | . . . . . . . . . . . . . . . . . . . . 3 . . . . . Damage (major) 4 | . . . . . . . . . . . . . . . . . . . . 4 . . . . . Siege Activations 1 | . . . . . . . . . . . . . . . . . . . . 1 . . . . . Total Turns 4 | . . . . . . . . . . . . . . . . . . . . 4 . . . . . Longest Duration 4 | . . . . . . . . . . . . . . . . . . . . 4 . . . . . Robots Corrupted 6 | . . . . 1 . . . . . . . . . . . . . . . . . 4 . 1 . Combat Hostiles 4 | . . . . . . . . . . . . . . . . . . . . . . 3 . 1 . Parts Fried 5 | . 1 . . 2 . . . . . . . . . . . . . . . . . 2 . . . Impact Corruptions 1 | . . . . . . . 1 . . . . . . . . . . . . . . . . . . Robots Melted 3 | . . . . . . . . . . . . . . . . . . . . 1 2 . . . . Combat Hostiles 3 | . . . . . . . . . . . . . . . . . . . . 1 2 . . . . Parts Melted 34 | . . . . . . . . . . . . . . . . . . . . 9 19 4 2 . . Heat Transferred 15531 | . 583 . . 148 . . 150 . . . . . . . . . . . . 5232 5670 2128 1509 . 111 Parts Sabotaged 3 | . . . . . . . . . . . . . . . . . . . . 3 . . . . . Parts Stolen . | . . . . . . . . . . . . . . . . . . . . . . . . . . Parts Stripped . | . . . . . . . . . . . . . . . . . . . . . . . . . . Power Chain Reactions 6 | . 4 . . . . . 1 . . . . . . . . . . . . 1 . . . . . Missiles Intercepted . | . . . . . . . . . . . . . . . . . . . . . . . . . . Alert | -11 -10 -10 -9 -9 -9 -8 -8 -8 -8 -8 -7 -7 -7 -7 -6 -6 -6 -5 -5 -5 -5 -4 -3 -3 -2 ------- Run | Scr Mat Min Mat Min Exi Min Mat Gar Mat Gar Fac Gar Fac Gar Fac Was Fac Fac Was Fac Ext Fac Res Qua Res Peak Influence 1064 | . 281 131 385 263 . . 222 585 401 501 672 646 453 426 428 110 176 312 50 1064 705 681 452 215 183 Initial 490 | . . 91 . 148 . . . 99 284 146 262 365 338 256 223 110 . 31 50 35 490 259 343 191 120 Average 296 | . 161 51 189 141 . . 118 361 279 307 306 520 292 359 294 106 76 150 50 542 574 397 339 164 121 Maximum Alert Level 3 | . 1 . 1 1 . . 1 2 2 2 2 2 2 2 2 . . 1 . 3 3 2 2 1 . Low Security (%) 39 | 100 68 100 61 66 . 100 94 25 . 22 23 . 25 . . 100 100 77 100 10 . 16 . 96 100 Level 1 32 | . 31 . 38 33 . . 5 24 96 49 54 12 65 52 91 . . 22 . 13 . 38 97 3 . Level 2 25 | . . . . . . . . 50 3 28 21 87 9 47 8 . . . . 48 99 44 2 . . Level 3 2 | . . . . . . . . . . . . . . . . . . . . 26 . . . . . Level 4 . | . . . . . . . . . . . . . . . . . . . . . . . . . . Level 5 . | . . . . . . . . . . . . . . . . . . . . . . . . . . High Security . | . . . . . . . . . . . . . . . . . . . . . . . . . . Max Security . | . . . . . . . . . . . . . . . . . . . . . . . . . . Squads Dispatched 59 | . 1 . 2 . . . 4 . 1 . 4 . 4 . . . 2 4 . 11 7 14 3 1 1 Investigation 9 | . 1 . . . . . . . . . 2 . . . . . . . . 1 3 2 . . . Extermination 14 | . . . . . . . . . . . 1 . 2 . . . 1 1 . 2 . 4 3 . . Reinforcement 23 | . . . 2 . . . 4 . 1 . 1 . 2 . . . 1 1 . 3 2 4 . 1 1 Assault 8 | . . . . . . . . . . . . . . . . . . . . 4 2 2 . . . Garrison 5 | . . . . . . . . . . . . . . . . . . 2 . 1 . 2 . . . Intercept . | . . . . . . . . . . . . . . . . . . . . . . . . . . Construction Impeded 5 | . . . . . . . . . . . . . . . . . . . . 2 1 2 . . . Haulers Reinforced 2 | . . . . . . . . . . . . . 1 . . . . . . . . 1 . . . Stealth | -11 -10 -10 -9 -9 -9 -8 -8 -8 -8 -8 -7 -7 -7 -7 -6 -6 -6 -5 -5 -5 -5 -4 -3 -3 -2 --------- Run | Scr Mat Min Mat Min Exi Min Mat Gar Mat Gar Fac Gar Fac Gar Fac Was Fac Fac Was Fac Ext Fac Res Qua Res Distress Signals 16 | . 3 . 2 . . . 2 . 1 . . . 1 . . . . . . 2 2 . . 1 2 Communications Jammed 60 | . . . . . . . . . . . . . . . 1 . . 14 . 34 . 9 . 2 . Distress Signals 57 | . . . . . . . . . . . . . . . 1 . . 13 . 34 . 9 . . . Times Spotted 494 | . 28 2 45 12 . . 45 14 15 16 7 13 22 8 13 5 8 15 . 65 65 36 23 14 23 Peak Tracking Total 15 | . 4 2 6 3 . . 5 4 3 12 2 5 5 4 4 2 2 4 . 9 10 5 4 7 15 Tactical Retreats 54 | . 12 . 4 2 . . 6 4 . 1 . 2 2 1 1 . . 1 . 2 9 . . 3 4 Traps | -11 -10 -10 -9 -9 -9 -8 -8 -8 -8 -8 -7 -7 -7 -7 -6 -6 -6 -5 -5 -5 -5 -4 -3 -3 -2 ------- Run | Scr Mat Min Mat Min Exi Min Mat Gar Mat Gar Fac Gar Fac Gar Fac Was Fac Fac Was Fac Ext Fac Res Qua Res Traps Triggered 48 | . 1 . 1 1 . . . 7 2 3 2 5 3 2 2 . . 2 . 5 5 2 2 2 1 Indirectly . | . . . . . . . . . . . . . . . . . . . . . . . . . . Trap Hack Attempts . | . . . . . . . . . . . . . . . . . . . . . . . . . . Triggered . | . . . . . . . . . . . . . . . . . . . . . . . . . . Disarmed 6 | . . . . . . . . . . . . . 6 . . . . . . . . . . . . Reprogrammed . | . . . . . . . . . . . . . . . . . . . . . . . . . . Reused . | . . . . . . . . . . . . . . . . . . . . . . . . . . Traps Reconfigurated 1 | . . . . . . . . . . . 1 . . . . . . . . . . . . . . Traps Extracted . | . . . . . . . . . . . . . . . . . . . . . . . . . . Installed . | . . . . . . . . . . . . . . . . . . . . . . . . . . Triggered 2 | . 2 . . . . . . . . . . . . . . . . . . . . . . . . Machines | -11 -10 -10 -9 -9 -9 -8 -8 -8 -8 -8 -7 -7 -7 -7 -6 -6 -6 -5 -5 -5 -5 -4 -3 -3 -2 ---------- Run | Scr Mat Min Mat Min Exi Min Mat Gar Mat Gar Fac Gar Fac Gar Fac Was Fac Fac Was Fac Ext Fac Res Qua Res Machines Disabled 40 | . 3 . 1 1 . . . 3 . 2 . 1 . . . . 7 4 . 6 1 6 2 2 1 Max in Single Turn 6 | . 1 . 1 1 . . . 1 . 1 . 1 . . . . 6 4 . 2 1 3 1 2 1 Garrison Access 6 | . . . . . . . . . . . . . . . 1 . . 1 . 2 . 1 . . 1 Garrison Relay 6 | . . . . . . . . 3 . 2 . 1 . . . . . . . . . . . . . Machines Sabotaged . | . . . . . . . . . . . . . . . . . . . . . . . . . . Garrisons Compromised . | . . . . . . . . . . . . . . . . . . . . . . . . . . Overloaded Fab Kills . | . . . . . . . . . . . . . . . . . . . . . . . . . . Fab Network Shutdowns 1 | . . . . . . . . . . . 1 . . . . . . . . . . . . . . Hacking | -11 -10 -10 -9 -9 -9 -8 -8 -8 -8 -8 -7 -7 -7 -7 -6 -6 -6 -5 -5 -5 -5 -4 -3 -3 -2 --------- Run | Scr Mat Min Mat Min Exi Min Mat Gar Mat Gar Fac Gar Fac Gar Fac Was Fac Fac Was Fac Ext Fac Res Qua Res Machines Accessed 73 | . 6 . 7 1 2 . 5 . 4 . 5 . 4 . 3 . . 2 . 10 14 7 2 . 1 Terminals 53 | . 5 . 5 . . . 3 . 3 . 3 . 3 . 2 . . . . 9 14 5 1 . . Fabricators 4 | . . . . . . . . . . . 1 . . . . . . 1 . . . 2 . . . Repair Stations 3 | . 1 . 1 . . . . . . . . . . . . . . . . . . . 1 . . Recycling Units . | . . . . . . . . . . . . . . . . . . . . . . . . . . Scanalyzers 2 | . . . 1 . . . 1 . . . . . . . . . . . . . . . . . . Garrison Access 8 | . . . . . . . 1 . 1 . 1 . 1 . 1 . . 1 . 1 . . . . 1 Total Hacks 153 | . 20 . 22 1 2 . 11 . 6 . 13 . 6 . 5 . . 3 . 23 22 15 3 . 1 Successful 80 | . 12 . 11 1 2 . 6 . 4 . 7 . 3 . 2 . . 2 . 7 12 9 1 . 1 Failed 73 | . 8 . 11 . . . 5 . 2 . 6 . 3 . 3 . . 1 . 16 10 6 2 . . Catastrophic 19 | . 1 . 1 . . . . . . . 1 . 3 . . . . 1 . 5 5 1 1 . . Database Lockouts . | . . . . . . . . . . . . . . . . . . . . . . . . . . Manual 71 | . 9 . 13 . 1 . 7 . 6 . 3 . 3 . 4 . . . . 14 3 7 1 . . Terminals 120 | . 16 . 16 . . . 7 . 5 . 10 . 5 . 4 . . . . 22 22 11 2 . . Fabricators 8 | . . . . . . . . . . . 2 . . . . . . 2 . . . 4 . . . Repair Stations 8 | . 4 . 3 . . . . . . . . . . . . . . . . . . . 1 . . Recycling Units . | . . . . . . . . . . . . . . . . . . . . . . . . . . Scanalyzers 6 | . . . 3 . . . 3 . . . . . . . . . . . . . . . . . . Garrison Access 8 | . . . . . . . 1 . 1 . 1 . 1 . 1 . . 1 . 1 . . . . 1 Terminal Hacks 33 | . 5 . 4 1 2 . 1 . 1 . 3 . 1 . . . . . . 2 11 2 . . . Record 1 | . . . . . 1 . . . . . . . . . . . . . . . . . . . . Robot Analysis 4 | . 3 . 1 . . . . . . . . . . . . . . . . . . . . . . Open Door 11 | . . . . 1 . . . . . . . . . . . . . . . . 10 . . . . Branch Access Points 2 | . . . 1 . . . 1 . . . . . . . . . . . . . . . . . . Emergency Access Points 2 | . . . . . . . . . . . 1 . . . . . . . . 1 . . . . . Locate Traps 1 | . . . . . . . . . 1 . . . . . . . . . . . . . . . . Disarm Traps 1 | . . . . . . . . . . . . . 1 . . . . . . . . . . . . Recall Reinforcements 1 | . . . . . . . . . . . 1 . . . . . . . . . . . . . . Zone Layout 9 | . 2 . 2 . . . . . . . 1 . . . . . . . . 1 1 2 . . . EX-Prototype ID Bank 1 | . . . . . 1 . . . . . . . . . . . . . . . . . . . . Fabricator Hacks 4 | . . . . . . . . . . . 1 . . . . . . 1 . . . 2 . . . Load Schematic 1 | . . . . . . . . . . . . . . . . . . . . . . 1 . . . Build 3 | . . . . . . . . . . . 1 . . . . . . 1 . . . 1 . . . Repair Station Hacks 6 | . 4 . 2 . . . . . . . . . . . . . . . . . . . . . . Scan Component 3 | . 2 . 1 . . . . . . . . . . . . . . . . . . . . . . Repair 3 | . 2 . 1 . . . . . . . . . . . . . . . . . . . . . . Recycling Unit Hacks . | . . . . . . . . . . . . . . . . . . . . . . . . . . Scanalyzer 3 | . . . 2 . . . 1 . . . . . . . . . . . . . . . . . . Insert Component 2 | . . . 1 . . . 1 . . . . . . . . . . . . . . . . . . Analyze 1 | . . . 1 . . . . . . . . . . . . . . . . . . . . . . Garrison Access Hacks 8 | . . . . . . . 1 . 1 . 1 . 1 . 1 . . 1 . 1 . . . . 1 Unlock Access 4 | . . . . . . . 1 . 1 . 1 . 1 . . . . . . . . . . . . Seal Access 4 | . . . . . . . . . . . . . . . 1 . . 1 . 1 . . . . 1 Unauthorized Hacks 26 | . 3 . 3 . . . 3 . 2 . 2 . 1 . 1 . . . . 4 1 5 1 . . Terminals 26 | . 3 . 3 . . . 3 . 2 . 2 . 1 . 1 . . . . 4 1 5 1 . . Track 2 | . . . 1 . . . . . . . . . . . . . . . . . . 1 . . . Assimilate 2 | . . . . . . . 1 . 1 . . . . . . . . . . . . . . . . Botnet 21 | . 3 . 1 . . . 2 . 1 . 2 . 1 . 1 . . . . 4 1 4 1 . . Operators 1 | . . . 1 . . . . . . . . . . . . . . . . . . . . . . Fabricators . | . . . . . . . . . . . . . . . . . . . . . . . . . . Repair Stations . | . . . . . . . . . . . . . . . . . . . . . . . . . . Recycling Units . | . . . . . . . . . . . . . . . . . . . . . . . . . . Scanalyzers . | . . . . . . . . . . . . . . . . . . . . . . . . . . Garrison Access . | . . . . . . . . . . . . . . . . . . . . . . . . . . Data Cores Recovered 1 | . . . . . . . . . 1 . . . . . . . . . . . . . . . . Used . | . . . . . . . . . . . . . . . . . . . . . . . . . . Hacking Detections 51 | . 6 . 5 . . . 4 . 1 . 2 . 4 . 2 . . 1 . 8 10 6 2 . . Full Trace Events 8 | . . . . . . . 1 . . . 1 . . . . . . . . 1 3 2 . . . Feedback Events 2 | . . . . . . . . . . . 1 . . . . . . . . 1 . . . . . Corruption 2 | . . . . . . . . . . . 1 . . . . . . . . 1 . . . . . Feedback Blocked . | . . . . . . . . . . . . . . . . . . . . . . . . . . Robot Schematics Acquired . | . . . . . . . . . . . . . . . . . . . . . . . . . . Robots Built 3 | . . . . . . . . . . . 3 . . . . . . . . . . . . . . Matter 252 | . . . . . . . . . . . 252 . . . . . . . . . . . . . . Time 134 | . . . . . . . . . . . 134 . . . . . . . . . . . . . . Total Robot Build Rating 12 | . . . . . . . . . . . 12 . . . . . . . . . . . . . . Part Schematics Acquired 1 | . . . 1 . . . . . . . . . . . . . . . . . . . . . . Parts Built 4 | . . . . . . . . . . . . . . . . . . 2 . . . 2 . . . Matter 556 | . . . . . . . . . . . . . . . . . . 278 . . . 278 . . . Time 208 | . . . . . . . . . . . . . . . . . . 69 . . . 139 . . . Total Part Build Rating 36 | . . . . . . . . . . . . . . . . . . 18 . . . 18 . . . Parts Repaired 3 | . 2 . 1 . . . . . . . . . . . . . . . . . . . . . . Time 65 | . 52 . 13 . . . . . . . . . . . . . . . . . . . . . . Parts Recycled . | . . . . . . . . . . . . . . . . . . . . . . . . . . Recycled Matter . | . . . . . . . . . . . . . . . . . . . . . . . . . . Retrieved Matter . | . . . . . . . . . . . . . . . . . . . . . . . . . . Retrieved Components . | . . . . . . . . . . . . . . . . . . . . . . . . . . Parts Scanalyzed 1 | . . . 1 . . . . . . . . . . . . . . . . . . . . . . Part Schematics Acquired 1 | . . . 1 . . . . . . . . . . . . . . . . . . . . . . Parts Damaged . | . . . . . . . . . . . . . . . . . . . . . . . . . . Bothacking | -11 -10 -10 -9 -9 -9 -8 -8 -8 -8 -8 -7 -7 -7 -7 -6 -6 -6 -5 -5 -5 -5 -4 -3 -3 -2 ------------ Run | Scr Mat Min Mat Min Exi Min Mat Gar Mat Gar Fac Gar Fac Gar Fac Was Fac Fac Was Fac Ext Fac Res Qua Res Used RIF Installer 4 | . . . . . . . . 1 . 1 . 1 . 1 . . . . . . . . . . . Coupler Efficiency 1 | . . . . . . . . . . 1 . . . . . . . . . . . . . . . Signal Jammer 1 | . . . . . . . . . . . . 1 . . . . . . . . . . . . . Patrol Navigation 1 | . . . . . . . . . . . . . . 1 . . . . . . . . . . . Robots Hacked 14 | . . . . . . . . . . . . . 1 . 1 6 1 1 . . 1 1 2 . . Non-combat 6 | . . . . . . . . . . . . . 1 . 1 . 1 1 . . . 1 1 . . Combat 8 | . . . . . . . . . . . . . . . . 6 . . . . 1 . 1 . . Robot Hacks Applied 16 | . . . . . . . . . . . . . 1 . 1 8 1 1 . . 1 1 2 . . parse_system 1 | . . . . . . . . . . . . . . . . 1 . . . . . . . . . map_route 6 | . . . . . . . . . . . . . 1 . 1 . 1 1 . . . 1 1 . . ignore_targets 7 | . . . . . . . . . . . . . . . . 7 . . . . . . . . . formatsys_high 2 | . . . . . . . . . . . . . . . . . . . . . 1 . 1 . . Relay Couplers Released 30 | . . . . . . . . 13 . 6 . 4 4 . . . . . . . . 3 . . . Machine Destruction 26 | . . . . . . . . 13 . 6 . 4 . . . . . . . . . 3 . . . Programmers 4 | . . . . . . . . . . . . . 4 . . . . . . . . . . . . Attached 7 | . . . . . . . . . . . 1 . 1 . . . 1 1 . . 1 1 1 . . Robots Rewired 4 | . . . . . . . . . . . . . . . . . . . . . 4 . . . . Allies Hacked 2 | . . . . . . . . . . . . . . . . . . . . 2 . . . . . Hacks Repelled . | . . . . . . . . . . . . . . . . . . . . . . . . . . Allies | -11 -10 -10 -9 -9 -9 -8 -8 -8 -8 -8 -7 -7 -7 -7 -6 -6 -6 -5 -5 -5 -5 -4 -3 -3 -2 -------- Run | Scr Mat Min Mat Min Exi Min Mat Gar Mat Gar Fac Gar Fac Gar Fac Was Fac Fac Was Fac Ext Fac Res Qua Res Total Allies 44 | . . . . 1 . . 1 . . . 3 . . . . . . . 20 . 16 2 1 . . Largest Group 20 | . . . . 1 1 . 1 . . . 3 3 . . . . . . 20 20 5 2 1 . . Highest-Rated Group 785 | . . . . 31 31 . 10 . . . 90 90 . . . . . . 785 785 147 92 64 . . Highest-Rated Ally 76 | . . . . 31 31 . 10 . . . 30 30 . . . . . . 50 50 76 46 64 . . Total Orders . | . . . . . . . . . . . . . . . . . . . . . . . . . . Ally Attacks 226 | . . . . . . . . 7 . . 1 11 . . . . . . . 72 107 20 8 . . Total Damage 4747 | . . . . . . . . 191 . . 32 206 . . . . . . . 1970 1651 404 293 . . Kills 30 | . . . . . . . . 2 . . . 1 . . . . . . . 13 11 2 1 . . Allies Corrupted 2 | . . . . . . . . . . . . . . . . . . . . 2 . . . . . Allies Melted 1 | . . . . . . . . . . . . . . . . . . . . . 1 . . . . Turrets Deployed 1 | . . . . . . . . 1 . . . . . . . . . . . . . . . . . Intel | -11 -10 -10 -9 -9 -9 -8 -8 -8 -8 -8 -7 -7 -7 -7 -6 -6 -6 -5 -5 -5 -5 -4 -3 -3 -2 ------- Run | Scr Mat Min Mat Min Exi Min Mat Gar Mat Gar Fac Gar Fac Gar Fac Was Fac Fac Was Fac Ext Fac Res Qua Res Robot Analysis Total 4 | . 3 . 1 . . . . . . . . . . . . . . . . . . . . . . Derelict Logs Recovered 2 | . . 1 . 1 . . . . . . . . . . . . . . . . . . . . . Drone Launches . | . . . . . . . . . . . . . . . . . . . . . . . . . . Drone Recoveries . | . . . . . . . . . . . . . . . . . . . . . . . . . . Exploration | -11 -10 -10 -9 -9 -9 -8 -8 -8 -8 -8 -7 -7 -7 -7 -6 -6 -6 -5 -5 -5 -5 -4 -3 -3 -2 ------------- Run | Scr Mat Min Mat Min Exi Min Mat Gar Mat Gar Fac Gar Fac Gar Fac Was Fac Fac Was Fac Ext Fac Res Qua Res Turns Passed 24941 | 63 963 997 1809 1197 483 730 1459 1150 963 753 887 834 1714 364 585 412 540 560 188 2112 2270 1787 1459 177 485 Spaces Moved 11099 | 36 429 541 787 572 266 385 492 527 378 268 360 385 730 181 265 161 241 218 98 860 1019 802 618 87 393 Core 173 | 9 . . 1 . . . . . . . . . . . . . . . . . . . . 31 132 Treads 10086 | 27 429 541 204 438 266 385 492 527 378 268 360 385 730 181 265 161 241 218 98 860 1019 802 618 19 174 Legs . | . . . . . . . . . . . . . . . . . . . . . . . . . . Wheels 767 | . . . 582 134 . . . . . . . . . . . . . . . . . . . . 51 Hover . | . . . . . . . . . . . . . . . . . . . . . . . . . . Flight 73 | . . . . . . . . . . . . . . . . . . . . . . . . 37 36 Fastest Speed 40 | 50 160 160 140 160 180 180 180 180 180 180 180 180 170 170 170 180 180 160 185 160 180 160 160 40 40 Average Speed 174 | 145 160 179 165 179 180 180 186 180 180 180 180 180 177 170 174 180 180 179 185 188 180 167 178 89 110 Slowest Speed 2050 | 200 160 180 1500 240 180 180 260 180 180 180 180 180 200 170 180 180 180 185 185 260 200 180 185 2050 170 Overloaded Moves . | . . . . . . . . . . . . . . . . . . . . . . . . . . Propulsion Burnouts . | . . . . . . . . . . . . . . . . . . . . . . . . . . Robots Hopped 2 | . . . . . . . . . . . . . . . . . . . . . 1 . . . 1 Cave-ins Triggered . | . . . . . . . . . . . . . . . . . . . . . . . . . . Exploration Rate (%) 47 | 3 65 98 73 98 69 68 51 67 47 36 15 71 21 35 11 82 13 10 68 40 95 26 29 18 15 Regions Visited 25 Branch Regions 6 Pre-discovered Areas 1 | . . . . . 1 . . . . . . . . . . . . . . . . . . . . Known Exits Taken 9 | . . . 1 . . . 1 . 1 . 1 . 1 . . . 1 . . . 1 1 1 . . Unknown Exits Taken 8 | 1 1 1 . 1 1 1 . . . . . . . . . . . . . 1 . . . 1 . Scrap Searched 4 | . . 1 . 2 . 1 . . . . . . . . . . . . . . . . . . . Spaces Dug 25 | . . . . . . . . . . . . . 3 . . . . . . 2 . 7 13 . . Terrain Destroyed 255 | . 8 . . . . . 6 . . . . . 3 . . . 4 1 . 75 28 86 28 15 1 Melee 3 | . . . . . . . . . . . . . 3 . . . . . . . . . . . . Projectile 91 | . . . . . . . . . . . . . . . . . . . . 26 6 30 28 . 1 AOE 161 | . 8 . . . . . 6 . . . . . . . . . 4 1 . 49 22 56 . 15 . Terrain Rammed 1 | . . . . . . . . . . . . 1 . . . . . . . . . . . . . Walls Destroyed . | . . . . . . . . . . . . . . . . . . . . . . . . . . Machines Disabled 1 | . . . . . . . . . . . . 1 . . . . . . . . . . . . . Actions | -11 -10 -10 -9 -9 -9 -8 -8 -8 -8 -8 -7 -7 -7 -7 -6 -6 -6 -5 -5 -5 -5 -4 -3 -3 -2 --------- Run | Scr Mat Min Mat Min Exi Min Mat Gar Mat Gar Fac Gar Fac Gar Fac Was Fac Fac Was Fac Ext Fac Res Qua Res Total 14690 | 44 578 559 1114 678 274 417 867 681 599 463 568 456 1042 210 325 218 299 311 107 1092 1290 1073 835 151 439 Wait 1497 | . 60 3 116 34 . 26 234 71 156 114 144 17 178 3 8 1 23 27 4 36 83 59 60 19 21 Move 11068 | 35 428 540 786 571 265 384 491 525 377 266 359 383 729 179 265 160 240 218 97 859 1016 801 617 86 391 Hop 2 | . . . . . . . . . . . . . . . . . . . . . 1 . . . 1 Pick Up 280 | 3 12 6 38 11 3 . 25 17 4 8 12 4 16 4 4 4 3 6 1 23 17 34 20 4 1 Fast Attach 94 | 6 5 . 9 1 . . 1 . . . . . 4 1 1 3 . 3 . 18 14 9 9 6 4 Attach 143 | . 3 1 7 2 . . 10 4 1 6 2 4 3 1 4 1 1 10 . 21 12 20 15 9 6 Detach 23 | . . . 1 . . . . . . . . . 1 . . 1 . 2 . 1 4 5 2 2 4 Swap 162 | . 3 1 8 7 . . 4 1 10 9 15 1 22 . 6 1 2 2 1 8 11 20 28 2 . Drop 227 | . 2 2 35 11 6 . 10 13 9 9 15 1 23 2 3 6 2 3 4 9 16 26 19 1 . Fire 1093 | . 65 6 113 41 . . 89 38 41 44 19 35 58 16 31 41 28 40 . 114 86 96 65 22 5 Melee 3 | . . . . . . . . . . . . . 3 . . . . . . . . . . . . Ram 7 | . . . 1 . . . . . . . . 1 . . . . . . . . . . . . 5 Kick . | . . . . . . . . . . . . . . . . . . . . . . . . . . Crush 19 | . . . . . . 7 3 . 1 1 . . 1 . 1 . . . . 3 1 . . . 1 Escape Stasis 50 | . . . . . . . . 12 . 6 2 10 4 4 2 . . . . . 8 2 . . . Rewire 22 | . . . . . . . . . . . . . . . . . . . . . 21 1 . . . Trap . | . . . . . . . . . . . . . . . . . . . . . . . . . . Miscellaneous . | . . . . . . . . . . . . . . . . . . . . . . . . . . Route ------- -11/Scrapyard -10/Materials (discovered 3 exits: *Mat x2 / [*Min]) -10/Mines (discovered 2 exits: *Mat x2) -9/Materials (discovered 3 exits: *Mat x2 / *Min) -9/Mines (discovered 3 exits: *Mat x2 / *Exi) -9/Exiles -8/Mines -8/Materials (discovered 2 exits: *Fac / Gar) -8/Garrison (discovered 2 exits: *Mat x2) -8/Materials (discovered 2 exits: *Fac / Gar) -8/Garrison -7/Factory -7/Garrison (discovered 3 exits: *Fac x3) -7/Factory -7/Garrison -6/Factory -6/Waste -6/Factory -5/Factory -5/Waste -5/Factory (discovered 4 exits: *Fac x2 / *Upp / *Ext) -5/Extension (discovered 3 exits: *Fac x2 / [*Cet]) -4/Factory (discovered 2 exits: *Res x2) -3/Research (discovered 2 exits: *Arm / *Qua) -3/Quarantine -2/Research History --------- Turn | Location | Event 34 | -11/Scrapyard | Discovered new exit (range 14) 64 | -11/Scrapyard | Entered Materials 304 | -10/Materials | Build established: Mutant 332 | -10/Materials | Discovered new exit (range 16) 514 | -10/Materials | Discovered new exit (range 15) 541 | -10/Materials | Discovered new exit (range 12) 904 | -10/Materials | Repaired Lgt. Treads 981 | -10/Materials | Repaired Lgt. Treads 1027 | -10/Materials | Entered Mines 1045 | -10/Mines | Core integrity fell below 50% 1161 | -10/Mines | A weapon hastily lodged in a ceiling crevice suddenly fell to the ground 1297 | -10/Mines | Discovered new exit (range 14) 1313 | -10/Mines | Discovered new exit (range 15) 1682 | -10/Mines | Learned Materials emergency access door positions 2024 | -10/Mines | Entered Materials 2024 | -9/Materials | Evolved 2 slots: Propulsion x1, Utility x1 2328 | -9/Materials | Build established: Hauler-Mutant 2663 | -9/Materials | Repaired Hcp. Storage Unit 2704 | -9/Materials | Discovered new exit (range 10) 3135 | -9/Materials | Discovered new exit (range 3) 3216 | -9/Materials | Identified exit to Mines 3833 | -9/Materials | Entered Mines 3846 | -9/Mines | YI-UF0 nonchalantly dropped a Grenade Launcher on the ground 3914 | -9/Mines | Destroyed YI-UF0 3916 | -9/Mines | Found Prototype Storage 4127 | -9/Mines | Learned Materials terminal intel 4324 | -9/Mines | Discovered new exit (range 16) 4762 | -9/Mines | Received a Mining Laser from a helpful Derelict 4781 | -9/Mines | Received a Rocket Launcher from a helpful Derelict 4783 | -9/Mines | Discovered new exit (range 5) 4840 | -9/Mines | Met a Derelict who couldn't figure out how to use a Trap Extractor 4846 | -9/Mines | Core integrity fell below 50% 5022 | -9/Mines | Deemed a non-threat by the Exiles lab entrance 5022 | -9/Mines | Discovered new exit (range 5) 5030 | -9/Mines | Entered Exiles 5030 | -9/Exiles | Accompanied by 1 ally 5074 | -9/Exiles | Met 8R-AWN 5102 | -9/Exiles | Met EX-HEX 5171 | -9/Exiles | Met EX-DEC 5200 | -9/Exiles | Learned location of Zion (-7) 5228 | -9/Exiles | Met EX-BIN 5254 | -9/Exiles | Aligned with FarCom system 5255 | -9/Exiles | Given EX-Vault access code 5299 | -9/Exiles | Opened EX-Vault 5313 | -9/Exiles | Found XL Autogun Array 5318 | -9/Exiles | Found Trap Reconfigurator 5331 | -9/Exiles | Found Deploy-a-Sentry 5368 | -9/Exiles | Warned to stay clear of 0b10 Research branches 5494 | -9/Exiles | Discovered new exit (range 14) 5513 | -9/Exiles | Stole three prototypes: Trap Reconfigurator, XL Autogun Array, Deploy-a-Sentry 5513 | -9/Exiles | Entered Mines 6144 | -8/Mines | Discovered new exit (range 13) 6243 | -8/Mines | Entered Materials 6243 | -8/Materials | Evolved 2 slots: Utility x2 6244 | -8/Materials | Loaded intel: 12 terminal locations 6778 | -8/Materials | Identified YI-UF0's Bottomless Matter Pit 7483 | -8/Materials | Discovered new exit (range 16) 7700 | -8/Materials | Identified exit to Garrison 7702 | -8/Materials | Entered Garrison 7711 | -8/Garrison | Installed Relay Interface Framework 7757 | -8/Garrison | Triggered checkpoint 7836 | -8/Garrison | Garrison Relay disabled 7931 | -8/Garrison | Triggered checkpoint 8170 | -8/Garrison | Triggered checkpoint 8272 | -8/Garrison | Garrison Relay disabled 8360 | -8/Garrison | Discovered new exit (range 10) 8416 | -8/Garrison | DAS Turret deployed 8424 | -8/Garrison | Triggered checkpoint 8646 | -8/Garrison | Discovered new exit (range 11) 8732 | -8/Garrison | Triggered checkpoint 8784 | -8/Garrison | Garrison Relay disabled 8852 | -8/Garrison | Entered Materials 9525 | -8/Materials | Discovered new exit (range 10) 9813 | -8/Materials | Identified exit to Garrison 9815 | -8/Materials | Entered Garrison 9824 | -8/Garrison | Expanded RIF knowledge: Coupler Efficiency 9881 | -8/Garrison | Triggered checkpoint 9928 | -8/Garrison | Core integrity fell below 50% 9983 | -8/Garrison | Garrison Relay disabled 10074 | -8/Garrison | Triggered checkpoint 10192 | -8/Garrison | Core integrity fell below 20% 10238 | -8/Garrison | Lost 4 parts (1p1n1u1w) 10467 | -8/Garrison | Discovered new exit (range 10) 10485 | -8/Garrison | Triggered checkpoint 10519 | -8/Garrison | Garrison Relay disabled 10568 | -8/Garrison | Entered Factory 10568 | -7/Factory | Evolved 2 slots: Utility x2 10570 | -7/Factory | FarCom data flow suspended 11244 | -7/Factory | Build established: Bothacker-Mutant 11267 | -7/Factory | Local fabrication network quarantined 11341 | -7/Factory | Fabricated L-41 Fighter? 11453 | -7/Factory | Identified exit to Garrison 11455 | -7/Factory | Entered Garrison 11455 | -7/Garrison | Accompanied by 3 allies 11529 | -7/Garrison | Triggered checkpoint 11546 | -7/Garrison | Triggered checkpoint 11675 | -7/Garrison | Discovered new exit (range 11) 11861 | -7/Garrison | Discovered new exit (range 15) 11948 | -7/Garrison | Triggered checkpoint 12044 | -7/Garrison | Discovered new exit (range 14) 12065 | -7/Garrison | Identified exit to Factory 12076 | -7/Garrison | Expanded RIF knowledge: Signal Jamming 12124 | -7/Garrison | Triggered checkpoint 12218 | -7/Garrison | Garrison Relay disabled 12289 | -7/Garrison | Entered Factory 13914 | -7/Factory | System corruption reached 10% 14001 | -7/Factory | Identified exit to Garrison 14003 | -7/Factory | Entered Garrison 14066 | -7/Garrison | Triggered checkpoint 14069 | -7/Garrison | Triggered checkpoint 14214 | -7/Garrison | Discovered new exit (range 8) 14226 | -7/Garrison | Identified exit to Factory 14241 | -7/Garrison | Expanded RIF knowledge: Watcher Feeds 14367 | -7/Garrison | Entered Factory 14367 | -6/Factory | Evolved 2 slots: Utility x1, Weapon x1 14952 | -6/Factory | Sucked down chute 14952 | -6/Factory | Entered Waste 14967 | -6/Waste | EMP discharged 15044 | -6/Waste | Spotted C-40 Crusher 15056 | -6/Waste | Spotted C-40 Crusher 15067 | -6/Waste | EMP discharged 15067 | -6/Waste | System corruption reached 10% 15084 | -6/Waste | Spotted C-40 Crusher 15119 | -6/Waste | Spotted C-40 Crusher 15132 | -6/Waste | Spotted C-40 Crusher 15152 | -6/Waste | Destroyed C-40 Crusher 15167 | -6/Waste | EMP discharged 15208 | -6/Waste | Destroyed C-40 Crusher 15222 | -6/Waste | Destroyed C-40 Crusher 15249 | -6/Waste | Spotted C-40 Crusher 15252 | -6/Waste | Found Damper Plating 15267 | -6/Waste | EMP discharged 15267 | -6/Waste | System corruption reached 30% 15341 | -6/Waste | Discovered new exit (range 13) 15362 | -6/Waste | Identified exit to Factory 15364 | -6/Waste | Entered Factory 15749 | -6/Factory | Discovered new exit (range 16) 15786 | -6/Factory | Identified exit to Factory 15904 | -6/Factory | Entered another Factory area 15904 | -5/Factory | Evolved 2 slots: Utility x2 15961 | -5/Factory | Discovered new exit (range 52) 16020 | -5/Factory | Fabricated Adv. Heavy Siege Treads (x2) 16322 | -5/Factory | Lost 4 parts (1n2u1w) 16464 | -5/Factory | Sucked down chute 16464 | -5/Factory | Entered Waste 16465 | -5/Waste | Joined by Warlord forces that had cleared the area 16571 | -5/Waste | Found Damper Plating 16624 | -5/Waste | Discovered new exit (range 13) 16633 | -5/Waste | Build established: Bothacker-Tank 16646 | -5/Waste | Identified exit to Factory 16652 | -5/Waste | Entered Factory 16652 | -5/Factory | Accompanied by 20 allies 16923 | -5/Factory | Discovered new exit (range 16) 16957 | -5/Factory | Identified exit to Factory 17059 | -5/Factory | P-70 Sage assimilated allied 26-Y49(m) 17061 | -5/Factory | P-70 Sage assimilated allied JH-WYW(m) 17085 | -5/Factory | System corruption reached 10% 17431 | -5/Factory | Discovered new exit (range 16) 17447 | -5/Factory | Lost 7 parts (2n2u3w) 17457 | -5/Factory | Identified exit to Upper Caves 17613 | -5/Factory | Discovered exit to Factory (range 16) 17776 | -5/Factory | Build established: Bothacker-Mutant 17852 | -5/Factory | First assault squad dispatched 17921 | -5/Factory | Core integrity fell below 50% 17970 | -5/Factory | Destroyed 7 combat bots 17974 | -5/Factory | Lost 12 parts (2n5u5w) 18294 | -5/Factory | Garrison activated, responded to threat 18363 | -5/Factory | Lost 4 parts (2u2w) 18448 | -5/Factory | Lost 3 parts (1n1u1w) 18735 | -5/Factory | Discovered new exit (range 15) 18764 | -5/Factory | Entered Extension 18888 | -5/Extension | Rescued a captive Derelict 19062 | -5/Extension | Rescued a captive Derelict 19063 | -5/Extension | Rescued a captive Derelict 19147 | -5/Extension | Lost 3 parts (3w) 19172 | -5/Extension | Rescued a captive Derelict 19174 | -5/Extension | Rescued a captive Derelict 19364 | -5/Extension | First assault squad dispatched 19399 | -5/Extension | Build established: Scavenger-Mutant 19450 | -5/Extension | Rescued a captive Derelict 19473 | -5/Extension | Rescued a captive Derelict 19893 | -5/Extension | Build established: Scavenger-Tank 20032 | -5/Extension | Spotted B-75 Beast 20038 | -5/Extension | Assimilated Beast 6a with formatsys_high 20042 | -5/Extension | Core integrity fell below 20% 20083 | -5/Extension | Spotted B-75 Beast 20092 | -5/Extension | Destroyed B-75 Beast 20118 | -5/Extension | Lost 6 parts (2n3u1w) 20269 | -5/Extension | Rescued a captive Derelict 20465 | -5/Extension | Build established: Scavenger-Gunner 20650 | -5/Extension | Rescued a captive Derelict 20664 | -5/Extension | Rescued a captive Derelict 20709 | -5/Extension | Rescued a captive Derelict 20782 | -5/Extension | Discovered exit to Factory (range 10) 20784 | -5/Extension | Discovered new exit (range 6) 20914 | -5/Extension | Disrupted transfer network 21033 | -5/Extension | Discovered exit to Factory (range 3) 21034 | -5/Extension | Entered Factory 21034 | -4/Factory | Evolved 2 slots: Propulsion x1, Utility x1 21041 | -4/Factory | Lost 4 parts (1n1u2w) 21524 | -4/Factory | Build established: Scavenger-Tank 21533 | -4/Factory | Found Quantum Capacitor 21604 | -4/Factory | Fabricated Lgt. Quantum Reactor (x2) 21660 | -4/Factory | Lost 3 parts (1n2w) 21765 | -4/Factory | Discovered new exit (range 111) 21814 | -4/Factory | Garrison activated, responded to threat 21861 | -4/Factory | Lost 4 parts (1n1u2w) 22027 | -4/Factory | System corruption reached 10% 22254 | -4/Factory | Allied Derelicts emerged from ambush trap array 22619 | -4/Factory | Build established: Scavenger-Gunner 22683 | -4/Factory | Discovered new exit (range 5) 22688 | -4/Factory | Identified exit to Research 22784 | -4/Factory | First assault squad dispatched 22821 | -4/Factory | Entered Research 22821 | -3/Research | Evolved 2 slots: Power x1, Utility x1 23337 | -3/Research | Discovered new exit (range 20) 23374 | -3/Research | Found Prototype Device 23374 | -3/Research | Identified Exp. Thermal Shield 23446 | -3/Research | P-80 Master assimilated allied Warden 8a 23513 | -3/Research | Lost 4 parts (2n2w) 23556 | -3/Research | Identified exit to Armory 23608 | -3/Research | System corruption reached 10% 24169 | -3/Research | Spotted B-90 Cyclops 24211 | -3/Research | Discovered new exit (range 9) 24254 | -3/Research | Destroyed B-90 Cyclops 24278 | -3/Research | Identified exit to Quarantine 24280 | -3/Research | Entered Quarantine 24307 | -3/Quarantine | Lost 8 parts (1p2n1u4w) 24309 | -3/Quarantine | Assembled infested ambush trap array 24353 | -3/Quarantine | Core integrity fell below 50% 24366 | -3/Quarantine | Lost 10 parts (2p2n3u3w) 24418 | -3/Quarantine | Released all parts (11) 24429 | -3/Quarantine | Core integrity fell below 20% 24447 | -3/Quarantine | Lost 6 parts (3n1u2w) 24451 | -3/Quarantine | Discovered new exit (range 15) 24457 | -3/Quarantine | Entered Research 24457 | -2/Research | Evolved 2 slots: Utility x1, Weapon x1 24467 | -2/Research | Found Prototype Device 24467 | -2/Research | Identified Exp. Cloaking Device 24726 | -2/Research | Build established: Mutant 24865 | -2/Research | Released all parts (8) 24899 | -2/Research | Spotted B-90 Cyclops 24908 | -2/Research | Core integrity fell below 50% 24939 | -2/Research | Core integrity fell below 20% 24942 | -2/Research | Destroyed by S-43 Plague with Heavy Machine Gun Last Messages --------------- 24870_ Slammed into M-36 Artificer. 24877_ Slammed into S-43 Plague. 24886_ Field Propulsion Array destroyed. 24887_ Penetrated by Slug. 24889_ Identified Exp. Gyrokinetic Inverter. 24889_ Malfunction: Energy drain (-20). 24901_ O-24 Administrator: "IFF HANDSHAKE FAILED. SECURING TERMINAL." 24904_ ALERT: Hostiles spotted, dispatching reinforcements to Terminal R008. 24906_ Field Manipulator disabled. 24908_ B-90 Cyclops activates siege mode. 24917_ C-30 ARC bursts open, deploying its payload. 24917_ P-80 Master unfolds itself. 24918_ K-01 Serf collects debris. 24924_ K-01 Serf destroyed. 24938_ Slug penetrates Wall. 24939_ Penetrated by Slug. 24940_ Terminal disabled. 24941_ Penetrated by Slug. 24942_ Slug penetrates Wall. Map ----- +----------------------------------------------------+ | ??????????????????????????????????????????????? | | ??????????????????????????????????????????????? | | ??????????????????????????????????????????????? | | ??????????????????????????????????????????????? | | ??????????????????????????????????????????????? | | ??????????????????????????????????????????????? | | ??????????????????????????????????????????????? | | ??????????????????????????????????????????????? | | ??????????????????????????????????????????????? | | ??????????????????????????????????????????????? | | ??????????????????????????????????????????????? | | ??????????????????????????????????????????????? | | ??????????????????????????????????????????????? | | ??????????????????????????????????????????????? | | ??????????????????????????????????????????????? | | ??????????????????????######??????????????????? | | ?????????????????????? ??? ????????????? | | ?????????????????????# ?? ???????????? | | ?????????????????????# ??????????? | | ?????????????????????# """ = k ???????????? | | ?????????????????????# """ k#????????????? | | ?????????????????????# """ #????????????? | | ???????????????????### u#????????????? | | ???????????????????#"" #????????????? | | ???????????????????#"" #????????????? | | ???????????????????#" @!! * #????????????? | | ???????????????????#T !!! ####?????????? | | ???????????????????#""!! k +????????? | | ???????????????????#"" #????????? | | ???????????????????#"" ###??????? | | ???????????????????### ??????? | | ?????????????????????# h ??????? | | ?????????????????????# s h ??????? | | ?????????????????????# s ??????? | | ?????????????????????# #### ###### #??????? | | ?????????????????????# ####+###### #??????? | | ?????????????????????# # # #??????? | | ?????????????????????# ss# # #??????? | | ?????????????????????# s# | # #??????? | | ?????????????????????# ssp# # #??????? | | ?????????????????????# + # #??????? | | ?????????????????????# ^# # +??????? | | ?????????????????????# # / #??????? | | ?????????????????????# # # #??????? | | ?????????????????????# ####+###### #??????? | | ?????????????????????# #?# # #??????# | | ?????????????????????# #?# + #????? | | ?????????????????????+ #?# ! # #???? | | ?????????????????????# #?######### #??= | | ?????????????????????# #?????????# =#? | +----------------------------------------------------+ Best States ------------- Heat Dissipation 100 Energy Generation 40 Energy Capacity 690 Matter Stores 550 Matter Capacity 650 Sight Range 16 Robot Scan Range 16 Terrain Scan Range 16 Terrain Scan Density 210 Jamming Range 16 Cloak Strength 4 Heat Shielding 100 Armor Coverage 1425 Resistance: KI 25 Resistance: EM 90 Core Shielding 30 Evasion (%) 62 Targeting Accuracy 10 Launcher Accuracy 30 Target Analysis 8 Recoil Reduction 4 Matter Filtering 30 Kinecelleration 30 Relay Coupler Types 47 Relay Coupler Value 2 Item Schematics ----------------- Lrg. Storage Unit | -9/Materials | Scanalyzed Robot Schematics ------------------ None Fabricated ------------ L-41 Fighter | x3 | -7/Factory | Preloaded Adv. Heavy Siege Treads | x2 | -5/Factory | Preloaded Lgt. Quantum Reactor | x2 | -4/Factory | Preloaded Alien Tech Used ----------------- None Achievements -------------- Oh No You Don't! Challenges ------------ None Game ------ Seed PrecisionAssembledNegator Manual? 0 Play Time 03:16:07 Cumulative 149.5 hours Start 2021.06.29 @ 16:52:33 End 2021.06.30 @ 16:47:59 Sessions 7 Manual Loads 0 Difficulty Rogue Special Mode None Game No. 112 Rogue 112 Adventurer 0 Explorer 0 Win Type - Total 5 Types 5/0/0/0/0/0/0/0/0 Lore% 78 Gallery% 65 Achievement% 54 Wizard Run 0 Options --------- ASCII 0 Keyboard 1 Movement Arrows Keybinds 0 Fullscreen 1 Font 18/SmallcapsGlow Map View 76x50 Tactical HUD 1 Map Filters NONE Filters NONE Steam 1 RUN: 5516b85e-6b59-424c-8321-c21657b76185